fUSD/lending_fUSD_20260130
["ID","MTS","AMOUNT","RATE_DAILY","PERIOD"]
[404034916,1769769042444,-500.0,0.00017973,2]
[404034917,1769769042453,-500.0,0.00017973,2]
[404034918,1769769042462,-500.0,0.00017973,2]
[404034919,1769769042471,-432.02224032,0.00017973,2]
[404034920,1769769042480,-501.56315427,0.00017973,2]
[404034921,1769769042490,-500.0,0.00017973,2]
[404034922,1769769042499,-501.14557509,0.00017973,2]
[404034923,1769769042507,-500.0,0.00017973,2]
[404034924,1769769042516,-500.0,0.00017973,2]
[404034925,1769769042526,-500.0,0.00017973,2]
[404034926,1769769042535,-500.0,0.00017973,2]
[404034927,1769769042544,-500.0,0.00017973,2]
[404034928,1769769042553,-150.0,0.00017973,2]
[404034929,1769769042563,-500.0,0.00017973,2]
[404034930,1769769042572,-210.27851574,0.00017973,2]
[404034931,1769769042581,-500.0,0.00017973,2]
[404034932,1769769042590,-500.0,0.00017973,2]
[404034933,1769769042599,-500.0,0.00017973,2]
[404034934,1769769042609,-392.26050896,0.00017973,2]
[404034935,1769769042618,-500.0,0.00017973,2]
[404034936,1769769042627,-501.19732692,0.00017973,2]
[404034937,1769769042637,-500.0,0.00017973,2]
[404034938,1769769042646,-151.06501544,0.00017973,2]
[404034939,1769769042655,-500.0,0.00017973,2]
[404034940,1769769042665,-163.36858583,0.00017973,2]
[404034941,1769769042674,-175.57287607,0.00017973,2]
[404034942,1769769042683,-500.0,0.00017973,2]
[404034943,1769769042692,-500.0,0.00017973,2]
[404034944,1769769042701,-502.00704372,0.00017973,2]
[404034945,1769769042711,-500.0,0.00017973,2]
[404034946,1769769042720,-500.0,0.00017973,2]
[404034947,1769769042729,-500.0,0.00017973,2]
[404034948,1769769042738,-501.3344838,0.00017973,2]
[404034949,1769769042747,-500.0,0.00017973,2]
[404034950,1769769042756,-500.0,0.00017973,2]
[404034951,1769769042765,-500.0,0.00017973,2]
[404034952,1769769042775,-563.6024582,0.00017973,2]
[404034953,1769769042784,-500.0,0.00017973,2]
[404034954,1769769042793,-205.44,0.0001798,2]
[404034955,1769769042802,-150.0,0.00017999,2]
[404034956,1769769042811,-300.0,0.00017999,2]
[404034957,1769769042820,-300.0,0.00017999,2]
[404034958,1769769042829,-1875099.46181866,0.00018,2]
[404034961,1769769042936,-202262.94103248,0.00018,2]
[404034962,1769769042948,-55151.7740061,0.00018,2]
[404034963,1769769042961,-1847.29706136,0.00018,2]
[404034964,1769769042973,-348.7328232,0.00018,2]
[404034974,1769769044827,-7135.37014955,0.00014616,2]
[404034975,1769769044840,-4930.28672361,0.00014616,2]
[404034976,1769769045085,-555.870015,0.00014616,2]
[404035014,1769769048068,-16548.65175847,0.00014616,2]
[404035015,1769769099642,1987.0,0.00021,30]
[404035022,1769769408083,2565.96630857,0.00013318,2]
[404035023,1769769408106,1019.30369143,0.00013318,2]
[404035024,1769769410281,-156.99465786,0.00014515,2]
[404035025,1769769410305,-203.46109691,0.00014515,2]
[404035026,1769769413604,-168.45637445,0.00014515,2]
[404035027,1769769416590,-671.86649392,0.00014515,2]
[404035028,1769769442524,-248.52870617,0.00014515,2]
[404035029,1769769442548,-53.58496439,0.0001456,2]
[404035030,1769769443680,1200.778623,0.00014442,2]
[404035031,1769769517977,302.11367,0.00014433,2]
[404035032,1769769794957,1348.21191757,0.00014461,2]
[404035033,1769769842054,296.7904435,0.00014407,2]
[404035042,1769770216086,2012.07399576,0.000144,2]
[404035043,1769770216109,1391.02330001,0.000144,2]
[404035044,1769770232275,-300.0,0.00014497,2]
[404035045,1769770232284,-1103.84725605,0.00014497,2]
[404035046,1769770232373,-96.15274395,0.00014497,2]
[404035047,1769770232382,-568.23133542,0.00014498,2]
[404035048,1769770232490,-7523.22441422,0.00014498,2]
[404035051,1769770232502,-195.34601578,0.00014498,2]
[404035052,1769770232511,-182.7790089,0.00014498,2]
[404035053,1769770232521,-247.32536955,0.00014498,2]
[404035054,1769770232531,-1213.39072575,0.00014498,2]
[404035055,1769770232540,-159.68176448,0.00014498,2]
[404035057,1769770232550,-1156.40138892,0.00014501,2]
[404035059,1769770232559,-151.0,0.00014504,2]
[404035061,1769770232568,-288.49700489,0.00014506,2]
[404035063,1769770232578,-1788.09,0.00014507,2]
[404035065,1769770232587,-177.021,0.00014507,2]
[404035067,1769770232597,-31934.37258112,0.00014507,2]
[404035069,1769770232608,-52500.57311752,0.00014507,2]
[404035071,1769770232619,-1254.41808677,0.00014507,2]
[404035109,1769770239171,-950.98,0.00014507,2]
[404035110,1769770239200,-2380.47169328,0.00014507,2]
[404035112,1769770240963,-1516.59381822,0.00014507,2]
[404035113,1769770241042,-741.10804071,0.00014507,2]
[404035114,1769770241543,-2013.52826101,0.00014507,2]
[404035115,1769770241563,-330.9107232,0.00014507,2]
[404035141,1769770244772,-1123.53686878,0.00014507,2]
[404035142,1769770245261,-298252.7618512,0.00014507,2]
[404035143,1769770245272,-1655.9319831,0.00014507,2]
[404035150,1769770246343,-3937.0039768,0.00014507,2]
[404035152,1769770251660,4788.24904125,0.00014407,2]
[404035153,1769770251682,6179.27234126,0.00014407,2]
[404035154,1769770251705,6179.27234126,0.00014407,2]
[404035155,1769770251730,6179.27234126,0.00014407,2]
[404035156,1769770251752,4225.09723497,0.00014407,2]
[404035157,1769770292672,177.0226817,0.00014217,2]
[404035158,1769770292708,1430.472,0.00014217,2]
[404035159,1769770307830,346.68042459,0.00014407,2]
[404035161,1769770867710,5000.0,0.00014,4]
[404035162,1769771020474,-250.89733365,0.00013862,2]
[404035163,1769771020503,-204.94860409,0.00014084,2]
[404035164,1769771020534,-3412.9161887,0.00014207,2]
[404035165,1769771020564,-206.10447465,0.00014297,2]
[404035166,1769771020593,-150.0,0.00014306,2]
[404035170,1769771431920,-323.48910006,0.00014235,2]
[404035171,1769771431957,-876.51089994,0.00014235,2]
[404035172,1769771431967,-300.0,0.00014235,2]
[404035173,1769771431978,-223.48910006,0.00014235,2]
[404035178,1769771437440,-405.73,0.000142,2]
[404035179,1769771437449,-79.23651675,0.00014235,2]
[404035180,1769771437459,-250.0,0.00014235,2]
[404035181,1769771437469,-8.43529856,0.00014236,2]
[404035189,1769771439528,-186.56470144,0.00014236,2]
[404035191,1769771439538,-167.14751429,0.00014236,2]
[404035194,1769771439549,-548.31062319,0.00014236,2]
[404035195,1769771439846,-913.52826101,0.00014236,2]
[404035266,1769771443754,-261.72420327,0.00014236,2]
[404035302,1769771445730,-969.85009041,0.00014236,2]
[404035303,1769771445742,-891.93999999,0.00014236,2]
[404035304,1769771445753,-999.4796696,0.00014236,2]
[404035305,1769771445764,-2426.20381908,0.00014236,2]
[404035314,1769771466040,163.21,0.00011551,2]
[404035315,1769771487994,-2033.38136411,0.00014236,2]
[404035316,1769771488025,-1466.57159984,0.00014236,2]
[404035317,1769771488053,-250.0,0.0001426,2]
[404035318,1769771488085,-195.0,0.00014295,2]
[404035319,1769771488114,-159.68176447,0.00014298,2]
[404035320,1769771488144,-300.0,0.00014306,2]
[404035321,1769771492649,1144.377,0.00014021,2]
[404035322,1769771492967,46.36354316,0.00014298,2]
[404035323,1769771492988,125.39018569,0.00014298,2]
[404035324,1769771807312,1106.0,0.00021,30]
[404035325,1769771903346,1000.0,0.00013605,2]
[404035326,1769771934352,1441.11,0.00013606,2]
[404035328,1769772059766,-157.68395652,0.00013868,2]
[404035329,1769772059807,-152.57486382,0.00013869,2]
[404035330,1769772061267,-347.42513618,0.00013869,2]
[404035331,1769772126088,150.0,0.00013683,2]
[404035332,1769772253729,900.0,0.000136,4]
[404035333,1769772255836,1900.0,0.000137,5]
[404035334,1769772258676,2800.0,0.000138,5]
[404035335,1769772260033,3800.0,0.000139,5]
[404035336,1769772325902,1029.03756511,0.000108,2]
[404035337,1769772337355,8820.97243489,9e-05,2]
[404035338,1769772337378,4388.78923261,9e-05,2]
[404035343,1769772422214,500.0,0.000136,4]
[404035344,1769772425224,1000.0,0.000137,5]
[404035345,1769772426460,1600.0,0.000138,5]
[404035346,1769772428556,2100.0,0.000139,5]
[404035347,1769772462902,3022.34249451,0.00013,2]
[404035348,1769772486241,816.23954548,0.000135,2]
[404035349,1769772558822,359.11,0.00013388,2]
[404035350,1769772559047,359.11,0.00013431,2]
[404035351,1769772559243,359.11,0.00013473,2]
[404035352,1769772559431,359.11,0.00013516,2]
[404035353,1769772559659,336.1987274,0.00013559,2]
[404035354,1769772559681,22.9112726,0.00013559,2]
[404035355,1769772559852,359.11,0.00013601,2]
[404035356,1769772560045,359.11,0.00013644,2]
[404035357,1769772560263,359.11,0.00013687,2]
[404035358,1769772593173,8899.7687274,0.00013231,2]
[404035359,1769772593194,10000.01,0.00013231,2]
[404035360,1769772593216,10000.01,0.00013231,2]
[404035361,1769772593238,10000.01,0.00013231,2]
[404035362,1769772593260,4925.6212726,0.00013231,2]
[404035363,1769772610854,200.0,0.00013204,2]
[404035364,1769772611880,-359.11,0.0001373,2]
[404035365,1769772611908,-250.0,0.00013751,2]
[404035366,1769772611931,-359.11,0.00013772,2]
[404035367,1769772611955,-359.11,0.00013815,2]
[404035368,1769772611980,-165.57782475,0.00013858,2]
[404035369,1769772614105,-195.0,0.0001374,2]
[404035370,1769772614129,-155.25477315,0.00013858,2]
[404035389,1769772631599,-38.2774021,0.00013858,2]
[404035390,1769772631609,-359.11,0.000139,2]
[404035391,1769772631618,-146.6325979,0.00013923,2]
[404035392,1769772631630,-1727.40440094,0.00013923,2]
[404035393,1769772631641,-257.91700116,0.00013923,2]
[404035394,1769772631651,-182.235,0.00013923,2]
[404035395,1769772631660,-359.11,0.00013943,2]
[404035396,1769772631669,-359.11,0.00013986,2]
[404035397,1769772631683,-196.71955628,0.00014011,2]
[404035398,1769772631708,-84.22459226,0.00014011,2]
[404035399,1769772631717,-353.21217274,0.00014013,2]
[404035400,1769772631728,-846.78782726,0.00014013,2]
[404035401,1769772631738,-171.64203726,0.00014014,2]
[404035402,1769772631747,-241.61663344,0.00014014,2]
[404035403,1769772631757,-597.41131265,0.00014014,2]
[404035404,1769772631766,-359.11,0.00014029,2]
[404035405,1769772631776,-359.11,0.00014071,2]
[404035406,1769772631785,-160.94336559,0.00014097,2]
[404035407,1769772631794,-150.0,0.00014098,2]
[404035408,1769772631804,-120.5387916,0.00014099,2]
[404035409,1769772631816,-1171.15387376,0.00014099,2]
[404035414,1769772631971,-559.2491887,0.00014099,2]
[404035415,1769772631985,-1199.16049217,0.00014099,2]
[404035416,1769772631996,-729.05658628,0.00014099,2]
[404035417,1769772632123,-2256.44017765,0.00014099,2]
[404035418,1769772632135,-2572.9816831,0.00014099,2]
[404035419,1769772632145,-8369.48756237,0.00014099,2]
[404035420,1769772632155,-370.69764968,0.00014099,2]
[404035421,1769772632164,-346.85898512,0.00014106,2]
[404035422,1769772632174,-232.12237638,0.00014106,2]
[404035423,1769772632183,-342.62317541,0.00014106,2]
[404035424,1769772632193,-500.0,0.00014106,2]
[404035425,1769772632202,-4345.2305,0.00014107,2]
[404035426,1769772632211,-153715.53327312,0.00014107,2]
[404035427,1769772632222,-5384.54879654,0.00014107,2]
[404035428,1769772632233,-15012.8251305,0.00014107,2]
[404035433,1769772637710,-11551.38221102,0.00014107,2]
[404035434,1769772637721,-1020.29583807,0.00014107,2]
[404035435,1769772637766,-825.95577747,0.00014107,2]
[404035449,1769772639707,-320.91149851,0.00014107,2]
[404035450,1769772639762,-1464.44502977,0.00014107,2]
[404035451,1769772639773,-2210704.102445,0.00014107,2]
[404035452,1769772639782,-359.11,0.00014114,2]
[404035453,1769772639791,-359.11,0.00014157,2]
[404035454,1769772639801,-504.0642492,0.00014199,2]
[404035455,1769772639810,-367.52085088,0.00014199,2]
[404035456,1769772639819,-151.0,0.00014199,2]
[404035457,1769772639828,-151.0,0.00014199,2]
[404035458,1769772639838,-151.0,0.00014199,2]
[404035459,1769772639847,-151.0,0.00014199,2]
[404035460,1769772639856,-151.0,0.00014199,2]
[404035461,1769772639866,-151.0,0.00014199,2]
[404035462,1769772639878,-151.0,0.00014199,2]
[404035463,1769772639887,-151.0,0.00014199,2]
[404035464,1769772639897,-151.0,0.00014199,2]
[404035465,1769772639912,-151.0,0.00014199,2]
[404035466,1769772639922,-161.08851633,0.00014199,2]
[404035467,1769772639933,-359.11,0.00014199,2]
[404035468,1769772639943,-271.90901464,0.00014206,2]
[404035469,1769772639955,-500.0,0.00014206,2]
[404035470,1769772639964,-500.0,0.00014206,2]
[404035471,1769772639976,-500.0,0.00014206,2]
[404035472,1769772639985,-500.0,0.00014206,2]
[404035473,1769772639996,-198.84886007,0.00014206,2]
[404035474,1769772640006,-500.0,0.00014206,2]
[404035475,1769772640016,-500.0,0.00014206,2]
[404035476,1769772640028,-500.0,0.00014206,2]
[404035477,1769772640040,-504.1508484,0.00014206,2]
[404035478,1769772640051,-500.0,0.00014206,2]
[404035479,1769772640061,-500.0,0.00014206,2]
[404035480,1769772640070,-500.0,0.00014206,2]
[404035481,1769772640079,-503.01886942,0.00014206,2]
[404035482,1769772640088,-500.0,0.00014206,2]
[404035483,1769772640097,-500.0,0.00014206,2]
[404035484,1769772640106,-500.0,0.00014206,2]
[404035485,1769772640115,-500.0,0.00014206,2]
[404035486,1769772640125,-500.0,0.00014206,2]
[404035487,1769772640134,-500.0,0.00014206,2]
[404035488,1769772640144,-500.0,0.00014206,2]
[404035489,1769772640153,-500.0,0.00014206,2]
[404035490,1769772640162,-500.0,0.00014206,2]
[404035491,1769772640171,-500.0,0.00014206,2]
[404035492,1769772640180,-500.0,0.00014206,2]
[404035493,1769772640189,-702.05,0.00014206,2]
[404035494,1769772640199,-294.55551423,0.00014206,2]
[404035495,1769772640208,-500.0,0.00014206,2]
[404035496,1769772640217,-500.0,0.00014206,2]
[404035497,1769772640226,-220.28127127,0.00014206,2]
[404035498,1769772640235,-500.0,0.00014206,2]
[404035499,1769772640245,-500.0,0.00014206,2]
[404035500,1769772640254,-500.0,0.00014206,2]
[404035501,1769772640263,-500.0,0.00014206,2]
[404035502,1769772640272,-500.0,0.00014206,2]
[404035503,1769772640282,-500.0,0.00014206,2]
[404035504,1769772640292,-500.0,0.00014206,2]
[404035505,1769772640301,-500.0,0.00014206,2]
[404035506,1769772640311,-500.0,0.00014206,2]
[404035507,1769772640320,-479.19347952,0.00014206,2]
[404035508,1769772640331,-500.0,0.00014206,2]
[404035509,1769772640342,-500.0,0.00014206,2]
[404035510,1769772640351,-500.0,0.00014206,2]
[404035511,1769772640361,-500.0,0.00014206,2]
[404035512,1769772640371,-500.0,0.00014206,2]
[404035513,1769772640381,-500.0,0.00014206,2]
[404035514,1769772640391,-194.23572268,0.00014206,2]
[404035515,1769772640401,-500.0,0.00014206,2]
[404035516,1769772640410,-500.0,0.00014206,2]
[404035517,1769772640419,-500.0,0.00014206,2]
[404035518,1769772640428,-500.0,0.00014206,2]
[404035519,1769772640438,-500.0,0.00014206,2]
[404035520,1769772640447,-385.18354163,0.00014206,2]
[404035521,1769772640457,-500.0,0.00014206,2]
[404035522,1769772640466,-500.0,0.00014206,2]
[404035523,1769772640475,-500.0,0.00014206,2]
[404035524,1769772640484,-226.21679116,0.00014206,2]
[404035525,1769772640494,-500.0,0.00014306,2]
[404035526,1769772640503,-500.0,0.00014306,2]
[404035527,1769772640513,-500.0,0.00014306,2]
[404035528,1769772640522,-326.5559361,0.00014306,2]
[404035529,1769772640531,-113068.52875386,0.00014329,2]
[404035530,1769772640540,-441.76,0.00014348,2]
[404035531,1769772640549,-1938.93873355,0.00014406,2]
[404035532,1769772640559,-271.3035718,0.00014406,2]
[404035533,1769772640568,-500.0,0.00014406,2]
[404035534,1769772640577,-310.72048062,0.00014406,2]
[404035535,1769772640586,-505.08602897,0.00014406,2]
[404035536,1769772640596,-502.42866636,0.00014406,2]
[404035537,1769772640605,-500.0,0.00014406,2]
[404035538,1769772640614,-622.5575592,0.00014406,2]
[404035539,1769772640623,-500.0,0.00014406,2]
[404035540,1769772640632,-500.0,0.00014406,2]
[404035541,1769772640641,-500.0,0.00014406,2]
[404035542,1769772640650,-500.0,0.00014406,2]
[404035543,1769772640660,-500.0,0.00014406,2]
[404035544,1769772640669,-500.0,0.00014406,2]
[404035545,1769772640678,-500.0,0.00014406,2]
[404035546,1769772640687,-500.0,0.00014406,2]
[404035547,1769772640696,-500.0,0.00014406,2]
[404035548,1769772640705,-500.0,0.00014406,2]
[404035549,1769772640715,-500.0,0.00014406,2]
[404035550,1769772640723,-500.0,0.00014406,2]
[404035551,1769772640734,-171.51596019,0.00014425,2]
[404035552,1769772640743,-500.0,0.00014425,2]
[404035553,1769772640752,-500.0,0.00014425,2]
[404035554,1769772640761,-150.0,0.00014425,2]
[404035555,1769772640771,-500.0,0.0001448,2]
[404035556,1769772640780,-500.0,0.0001448,2]
[404035557,1769772640790,-150.0,0.0001448,2]
[404035558,1769772640799,-702.05,0.0001448,2]
[404035559,1769772640808,-185306.8951471,0.00014495,2]
[404035560,1769772640817,-55659.348563,0.00014495,2]
[404035561,1769772640827,-151.0,0.00014507,2]
[404035562,1769772640836,-285.79091132,0.00014507,2]
[404035563,1769772640846,-8608.58079322,0.00014521,2]
[404035564,1769772640856,-8369.48756237,0.00014521,2]
[404035565,1769772640865,-2603.46032408,0.00014533,2]
[404035566,1769772640874,-6870.57298602,0.00014533,2]
[404035567,1769772640883,-608.0,0.00014535,2]
[404035568,1769772640892,-500.0,0.00014535,2]
[404035569,1769772640904,-150.0,0.00014535,2]
[404035570,1769772640914,-785.36848985,0.00014558,2]
[404035571,1769772640923,-597.41131265,0.00014569,2]
[404035572,1769772640933,-500.0,0.00014589,2]
[404035573,1769772640943,-150.0,0.00014589,2]
[404035574,1769772640952,-941.0,0.00014611,2]
[404035575,1769772640961,-1123.0,0.0001462,2]
[404035576,1769772640970,-500.0,0.00014644,2]
[404035577,1769772640981,-276.42986293,0.00014644,2]
[404035578,1769772640990,-1000.0,0.00014649,2]
[404035579,1769772640999,-669.0,0.00014688,2]
[404035580,1769772641008,-510.0,0.00014699,2]
[404035581,1769772641017,-1770.0,0.00014718,2]
[404035582,1769772641026,-702.05,0.00014754,2]
[404035583,1769772641035,-241.61663342,0.00014791,2]
[404035584,1769772641045,-155.0569489,0.000149,2]
[404035585,1769772641054,-8608.58079322,0.00014944,2]
[404035586,1769772641064,-8369.48756237,0.00014944,2]
[404035587,1769772641073,-681.23571717,0.00015,2]
[404035588,1769772641082,-6768.56868735,0.00015,2]
[404035589,1769772641092,-417.92178476,0.00015,2]
[404035590,1769772641101,-702.05,0.00015028,2]
[404035591,1769772641111,-348.2310452,0.00015052,2]
[404035592,1769772641121,-151.0,0.00015085,2]
[404035593,1769772641130,-250.0,0.00015103,2]
[404035594,1769772641141,-300.0,0.00015103,2]
[404035595,1769772641151,-670.73585146,0.00015103,2]
[404035596,1769772641162,-195.0,0.00015103,2]
[404035597,1769772641171,-151.0,0.0001511,2]
[404035598,1769772641181,-597.41131265,0.00015124,2]
[404035599,1769772641191,-151.0,0.00015126,2]
[404035600,1769772641200,-151.0,0.00015126,2]
[404035601,1769772641210,-151.0,0.00015126,2]
[404035602,1769772641221,-151.0,0.00015126,2]
[404035603,1769772641230,-174.91,0.00015195,2]
[404035604,1769772641239,-255.0,0.00015226,2]
[404035605,1769772641249,-1852.42,0.00015272,2]
[404035606,1769772641259,-702.05,0.00015302,2]
[404035607,1769772641269,-1000.0,0.00015305,2]
[404035608,1769772641278,-202.35883745,0.00015315,2]
[404035609,1769772641288,-195.0,0.00015315,2]
[404035610,1769772641299,-250.0,0.00015315,2]
[404035611,1769772641311,-300.0,0.00015315,2]
[404035612,1769772641320,-300.0,0.00015315,2]
[404035613,1769772641330,-426.27,0.00015359,2]
[404035614,1769772641340,-8608.58079322,0.00015366,2]
[404035615,1769772641349,-8369.48756237,0.00015366,2]
[404035616,1769772641359,-2500.23,0.00015402,2]
[404035617,1769772641369,-1680.0,0.00015414,2]
[404035618,1769772641378,-10003.0,0.000155,2]
[404035619,1769772641387,-12120.50514238,0.00015533,2]
[404035620,1769772641396,-241.61663342,0.00015568,2]
[404035621,1769772641406,-702.08245222,0.00015576,2]
[404035622,1769772641417,-597.41131265,0.00015679,2]
[404035623,1769772641426,-10076.80540011,0.00015682,2]
[404035624,1769772641436,-167.0,0.00015779,2]
[404035625,1769772641445,-378.0,0.0001578,2]
[404035626,1769772641456,-8608.58079322,0.00015788,2]
[404035627,1769772641465,-8369.48756237,0.00015788,2]
[404035628,1769772641474,-378.0,0.00015857,2]
[404035629,1769772641483,-186.21,0.00015868,7]
[404035630,1769772641492,-378.0,0.00015886,2]
[404035631,1769772641501,-159.99,0.0001589,2]
[404035632,1769772641510,-4824.0,0.00015902,2]
[404035633,1769772641520,-194.26,0.00015918,2]
[404035634,1769772641530,-378.0,0.00015973,2]
[404035635,1769772641539,-1334.0,0.0001598,2]
[404035636,1769772641551,-370.69764968,0.00016,2]
[404035637,1769772641560,-223.6899003,0.00016,2]
[404035638,1769772641569,-14147.13172518,0.00016,4]
[404035639,1769772641578,-18131.55081319,0.00016033,2]
[404035640,1769772641587,-24532.6257,0.00016033,2]
[404035641,1769772641597,-161.08851633,0.0001605,2]
[404035642,1769772641606,-378.0,0.00016068,2]
[404035643,1769772641616,-441.76,0.00016141,2]
[404035644,1769772641625,-152.08724,0.00016172,2]
[404035645,1769772641635,-5000.0,0.00016172,2]
[404035646,1769772641644,-1273.033,0.00016189,2]
[404035647,1769772641654,-218.736,0.00016189,2]
[404035648,1769772641663,-928.806,0.00016189,2]
[404035649,1769772641672,-1208.946,0.00016189,2]
[404035650,1769772641681,-616.0,0.00016189,2]
[404035651,1769772641690,-1413.751,0.00016189,2]
[404035652,1769772641699,-151.0,0.00016189,2]
[404035653,1769772641708,-151.0,0.00016189,2]
[404035654,1769772641717,-151.0,0.00016189,2]
[404035655,1769772641727,-151.0,0.000162,2]
[404035656,1769772641736,-151.0,0.000162,2]
[404035657,1769772641745,-151.0,0.000162,2]
[404035658,1769772641755,-199.347532,0.000162,2]
[404035659,1769772641764,-8608.58079322,0.00016211,2]
[404035660,1769772641775,-8369.48756237,0.00016211,2]
[404035661,1769772641784,-251.2137,0.00016255,2]
[404035662,1769772641793,-251.2137,0.00016255,2]
[404035663,1769772641802,-251.2137,0.00016255,2]
[404035664,1769772641812,-251.2137,0.00016255,2]
[404035665,1769772641822,-41347.5571907,0.00016331,2]
[404035666,1769772641831,-12419.2793586,0.00016331,2]
[404035667,1769772641840,-151.0,0.00016331,2]
[404035668,1769772641849,-541.022403,0.00016331,2]
[404035669,1769772641859,-541.022403,0.00016331,2]
[404035670,1769772641869,-541.022403,0.00016331,2]
[404035671,1769772641878,-541.022403,0.00016331,2]
[404035672,1769772641888,-458.818644,0.00016331,2]
[404035673,1769772641898,-458.818644,0.00016331,2]
[404035674,1769772641912,-458.818644,0.00016331,2]
[404035675,1769772641922,-458.818644,0.00016331,2]
[404035676,1769772641931,-241.61663342,0.00016346,2]
[404035677,1769772641941,-500.0,0.00016373,2]
[404035678,1769772641951,-500.0,0.00016373,2]
[404035679,1769772641961,-500.0,0.00016373,2]
[404035680,1769772641970,-316.74242,0.00016373,2]
[404035681,1769772641982,-500.0,0.00016373,2]
[404035682,1769772641991,-378.0,0.00016382,2]
[404035683,1769772642001,-151.0,0.00016382,2]
[404035684,1769772642010,-243.39013,0.00016382,2]
[404035685,1769772642020,-150.0,0.00016386,2]
[404035686,1769772642029,-150.0,0.00016386,2]
[404035687,1769772642039,-150.0,0.00016386,2]
[404035688,1769772642049,-150.101,0.00016386,2]
[404035689,1769772642059,-150.0,0.00016386,2]
[404035690,1769772642069,-150.184,0.00016386,2]
[404035691,1769772642079,-150.0,0.00016386,2]
[404035692,1769772642089,-165.0,0.000164,2]
[404035693,1769772642098,-167.0,0.0001643,2]
[404035694,1769772642108,-500.0,0.00016438,2]
[404035695,1769772642117,-415.54420541,0.00016438,2]
[404035696,1769772642127,-500.0,0.00016438,2]
[404035697,1769772642138,-500.0,0.00016438,2]
[404035698,1769772642147,-500.0,0.00016438,2]
[404035699,1769772642157,-500.0,0.00016438,2]
[404035700,1769772642166,-500.0,0.00016438,2]
[404035701,1769772642385,-500.0,0.00016438,2]
[404035702,1769772642396,-247.81777665,0.00016438,2]
[404035703,1769772642406,-500.0,0.00016438,2]
[404035704,1769772642415,-500.0,0.00016438,2]
[404035705,1769772642425,-283.0,0.00016438,2]
[404035706,1769772642435,-151.0,0.00016438,2]
[404035707,1769772642447,-151.0,0.00016438,2]
[404035708,1769772642458,-151.0,0.00016438,2]
[404035709,1769772642468,-151.0,0.00016438,2]
[404035710,1769772642478,-151.0,0.00016438,2]
[404035711,1769772642488,-151.0,0.00016438,2]
[404035712,1769772642498,-151.0,0.00016438,2]
[404035713,1769772642507,-8608.58079322,0.00016633,2]
[404035714,1769772642517,-8369.48756237,0.00016633,2]
[404035715,1769772642526,-599.60298507,0.00016685,2]
[404035716,1769772642536,-174.61919141,0.00016685,2]
[404035717,1769772642545,-322.6107,0.00016685,2]
[404035718,1769772642555,-262.49186997,0.00016685,2]
[404035719,1769772642565,-209.40437684,0.00016685,2]
[404035720,1769772642575,-721.12765535,0.00016685,2]
[404035721,1769772642584,-854.2589148,0.00016685,2]
[404035722,1769772642594,-165.35,0.00016712,2]
[404035723,1769772642603,-2833.0,0.0001672,2]
[404035724,1769772642613,-2833.0,0.0001672,2]
[404035725,1769772642622,-378.0,0.00016733,2]
[404035726,1769772642633,-217.15233878,0.0001674,2]
[404035727,1769772642642,-9225.8870577,0.00016741,2]
[404035728,1769772642652,-2771.1157922,0.00016741,2]
[404035729,1769772642662,-225.18697532,0.00016795,2]
[404035730,1769772642672,-233.51889341,0.0001685,2]
[404035731,1769772642681,-242.15909246,0.00016905,2]
[404035732,1769772642691,-378.0,0.00016923,2]